[Event "Titled Tuesday Blitz March 07 Early 2023"]
[White "Delorme, Alban"]
[Black "Papasimakopoulos, Alexandros"]
[WhiteFideId "623636"]
[BlackFideId "4244125"]
[WhiteElo "2196"]
[BlackElo "2359"]
[Result "1-0"]
[Round "02"]
[TimeControl "180+2"]
[Date "2023.03.07"]
[WhiteClock "0:00:07"]
[BlackClock "0:00:23"]

1. e4 {[%clk 0:03:00]}  e6 {[%clk 0:03:00]} 2. Ne2 {[%clk 0:03:01]}  d5 {[%clk 0:02:56]} 3. exd5 {[%clk 0:02:59]}  exd5 {[%clk 0:02:56]} 4. d4 {[%clk 0:02:56]}  Nf6 {[%clk 0:02:37]} 5. Nf4 {[%clk 0:02:48]}  Bd6 {[%clk 0:02:34]} 6. Nd3 {[%clk 0:02:46]}  O-O {[%clk 0:02:30]} 7. Be2 {[%clk 0:02:46]}  Bf5 {[%clk 0:02:27]} 8. O-O {[%clk 0:02:44]}  Nbd7 {[%clk 0:02:27]} 9. c3 {[%clk 0:02:41]}  c5 {[%clk 0:02:27]} 10. dxc5 {[%clk 0:02:41]}  Nxc5 {[%clk 0:02:28]} 11. Nxc5 {[%clk 0:02:34]}  Bxc5 {[%clk 0:02:28]} 12. Nd2 {[%clk 0:02:32]}  Bb6 {[%clk 0:02:24]} 13. Nf3 {[%clk 0:02:30]}  Ne4 {[%clk 0:02:23]} 14. Nd4 {[%clk 0:02:29]}  Bg6 {[%clk 0:02:19]} 15. Bf3 {[%clk 0:02:27]}  Re8 {[%clk 0:02:18]} 16. Re1 {[%clk 0:02:27]}  Qf6 {[%clk 0:02:16]} 17. Bxe4 {[%clk 0:02:07]}  dxe4 {[%clk 0:02:01]} 18. Be3 {[%clk 0:02:01]}  h5 {[%clk 0:01:59]} 19. Qb3 {[%clk 0:01:54]}  h4 {[%clk 0:01:57]} 20. h3 {[%clk 0:01:54]}  Qe5 {[%clk 0:01:49]} 21. Nb5 {[%clk 0:01:36]}  Bxe3 {[%clk 0:01:25]} 22. Rxe3 {[%clk 0:01:36]}  a6 {[%clk 0:01:25]} 23. Nd4 {[%clk 0:01:37]}  b5 {[%clk 0:01:22]} 24. a4 {[%clk 0:01:37]}  bxa4 {[%clk 0:01:17]} 25. Qxa4 {[%clk 0:01:37]}  a5 {[%clk 0:01:16]} 26. Nc6 {[%clk 0:01:17]}  Qg5 {[%clk 0:01:15]} 27. Nxa5 {[%clk 0:01:09]}  Bh5 {[%clk 0:01:15]} 28. Kh1 {[%clk 0:01:05]}  Re6 {[%clk 0:01:00]} 29. b4 {[%clk 0:00:43]}  Rg6 {[%clk 0:00:59]} 30. Rg1 {[%clk 0:00:37]}  Bf3 {[%clk 0:00:59]} 31. Rxf3 {[%clk 0:00:17]}  exf3 {[%clk 0:00:57]} 32. g3 {[%clk 0:00:17]}  hxg3 {[%clk 0:00:51]} 33. Rxg3 {[%clk 0:00:18]}  Qc1+ {[%clk 0:00:47]} 34. Kh2 {[%clk 0:00:19]}  Rxg3 {[%clk 0:00:35]} 35. Kxg3 {[%clk 0:00:17]}  Qxc3 {[%clk 0:00:32]} 36. Qb5 {[%clk 0:00:09]}  Rd8 {[%clk 0:00:22]} 37. Qb7 {[%clk 0:00:09]}  Rd6 {[%clk 0:00:20]} 38. Qb8+ {[%clk 0:00:05]}  Kh7 {[%clk 0:00:21]} 39. Qxd6 {[%clk 0:00:05]}  f5 {[%clk 0:00:19]} 40. Qf4 {[%clk 0:00:05]}  g6 {[%clk 0:00:17]} 41. Qxf3 {[%clk 0:00:05]}  Qxb4 {[%clk 0:00:17]} 42. Qb7+ {[%clk 0:00:06]}  Qxb7 {[%clk 0:00:16]} 43. Nxb7 {[%clk 0:00:07]}  g5 {[%clk 0:00:16]} 44. h4 {[%clk 0:00:06]}  Kg6 {[%clk 0:00:16]} 45. hxg5 {[%clk 0:00:06]}  Kxg5 {[%clk 0:00:16]} 46. f4+ {[%clk 0:00:07]}  Kf6 {[%clk 0:00:16]} 47. Nc5 {[%clk 0:00:08]}  Kg6 {[%clk 0:00:16]} 48. Kh4 {[%clk 0:00:08]}  Kh6 {[%clk 0:00:17]} 49. Nb3 {[%clk 0:00:07]}  Kg6 {[%clk 0:00:17]} 50. Nd4 {[%clk 0:00:07]}  Kf6 {[%clk 0:00:17]} 51. Kh5 {[%clk 0:00:08]}  Kg7 {[%clk 0:00:18]} 52. Nxf5+ {[%clk 0:00:08]}  Kh7 {[%clk 0:00:19]} 53. Kg5 {[%clk 0:00:08]}  Kh8 {[%clk 0:00:20]} 54. Nh6 {[%clk 0:00:09]}  Kg7 {[%clk 0:00:20]} 55. f5 {[%clk 0:00:09]}  Kh8 {[%clk 0:00:21]} 56. f6 {[%clk 0:00:09]}  Kh7 {[%clk 0:00:21]} 57. Nf5 {[%clk 0:00:09]}  Kg8 {[%clk 0:00:21]} 58. Kg6 {[%clk 0:00:09]}  Kh8 {[%clk 0:00:22]} 59. Nd6 {[%clk 0:00:08]}  Kg8 {[%clk 0:00:22]} 60. f7+ {[%clk 0:00:07]}  Kf8 {[%clk 0:00:23]} 61. Ne4 {[%clk 0:00:07]} 1-0


[Site "https://www.chess.com"]

[Event "Titled Tuesday Blitz March 07 Early 2023"]
[White "Drygalov, Sergey"]
[Black "Fiedorek, Michal"]
[WhiteFideId "24171743"]
[BlackFideId "1199528"]
[WhiteElo "2533"]
[BlackElo "2135"]
[Result "1-0"]
[Round "02"]
[TimeControl "180+2"]
[Date "2023.03.07"]
[WhiteClock "0:01:20"]
[BlackClock "0:00:27"]

1. d4 {[%clk 0:03:00]}  Nf6 {[%clk 0:02:56]} 2. c4 {[%clk 0:03:01]}  g6 {[%clk 0:02:51]} 3. Nc3 {[%clk 0:03:01]}  Bg7 {[%clk 0:02:51]} 4. e4 {[%clk 0:03:01]}  d6 {[%clk 0:02:51]} 5. Nf3 {[%clk 0:03:01]}  Kf8 {[%clk 0:02:52]} 6. Be2 {[%clk 0:03:01]}  Kg8 {[%clk 0:02:51]} 7. O-O {[%clk 0:03:00]}  h6 {[%clk 0:02:52]} 8. e5 {[%clk 0:02:55]}  Ne8 {[%clk 0:02:44]} 9. Bf4 {[%clk 0:02:52]}  Kh7 {[%clk 0:02:43]} 10. d5 {[%clk 0:02:45]}  Nd7 {[%clk 0:02:40]} 11. e6 {[%clk 0:02:45]}  fxe6 {[%clk 0:02:40]} 12. dxe6 {[%clk 0:02:45]}  Nc5 {[%clk 0:02:41]} 13. h4 {[%clk 0:02:40]}  Nxe6 {[%clk 0:02:40]} 14. Be3 {[%clk 0:02:41]}  Nf6 {[%clk 0:02:39]} 15. Qc2 {[%clk 0:02:38]}  Rf8 {[%clk 0:02:21]} 16. Bd3 {[%clk 0:02:38]}  Nc5 {[%clk 0:02:11]} 17. Bxg6+ {[%clk 0:02:37]}  Kh8 {[%clk 0:02:12]} 18. h5 {[%clk 0:02:37]}  Bg4 {[%clk 0:02:04]} 19. Nh4 {[%clk 0:02:37]}  e6 {[%clk 0:01:54]} 20. f3 {[%clk 0:02:35]}  Ng8 {[%clk 0:01:33]} 21. Bf2 {[%clk 0:02:30]}  Bf6 {[%clk 0:01:27]} 22. fxg4 {[%clk 0:01:43]}  Bxh4 {[%clk 0:01:26]} 23. g3 {[%clk 0:01:43]}  Bg5 {[%clk 0:01:22]} 24. Kg2 {[%clk 0:01:39]}  Qd7 {[%clk 0:01:21]} 25. Ne4 {[%clk 0:01:36]}  Qc6 {[%clk 0:01:08]} 26. Bd4+ {[%clk 0:01:34]}  e5 {[%clk 0:01:08]} 27. Bxc5 {[%clk 0:01:34]}  dxc5 {[%clk 0:01:07]} 28. Kh3 {[%clk 0:01:32]}  Nf6 {[%clk 0:01:03]} 29. Nxg5 {[%clk 0:01:23]}  hxg5 {[%clk 0:01:04]} 30. Qd2 {[%clk 0:01:21]}  Ne4 {[%clk 0:00:41]} 31. Bxe4 {[%clk 0:01:19]}  Qxe4 {[%clk 0:00:38]} 32. Qxg5 {[%clk 0:01:20]}  Rg8 {[%clk 0:00:37]} 33. Qh6+ {[%clk 0:01:19]}  Qh7 {[%clk 0:00:35]} 34. Qxh7+ {[%clk 0:01:19]}  Kxh7 {[%clk 0:00:36]} 35. Rf7+ {[%clk 0:01:19]}  Rg7 {[%clk 0:00:33]} 36. Raf1 {[%clk 0:01:19]}  Rg8 {[%clk 0:00:30]} 37. g5 {[%clk 0:01:19]}  Kh8 {[%clk 0:00:26]} 38. Rxg7 {[%clk 0:01:19]}  Rxg7 {[%clk 0:00:27]} 39. Kg4 {[%clk 0:01:20]} 1-0


[Site "https://www.chess.com"]

[Event "Titled Tuesday Blitz March 07 Early 2023"]
[White "Ozen, Bahadir"]
[Black "Dudzinski, Pawel"]
[WhiteFideId "6337058"]
[BlackFideId "1117890"]
[WhiteElo "2503"]
[BlackElo "2099"]
[Result "1/2-1/2"]
[Round "02"]
[TimeControl "180+2"]
[Date "2023.03.07"]
[WhiteClock "0:01:13"]
[BlackClock "0:02:01"]

1. g3 {[%clk 0:03:00]}  f5 {[%clk 0:02:58]} 2. Bg2 {[%clk 0:03:00]}  Nf6 {[%clk 0:02:59]} 3. d4 {[%clk 0:03:00]}  g6 {[%clk 0:02:59]} 4. b3 {[%clk 0:03:00]}  Bg7 {[%clk 0:03:00]} 5. Bb2 {[%clk 0:03:01]}  d5 {[%clk 0:03:00]} 6. Nf3 {[%clk 0:02:55]}  c6 {[%clk 0:03:00]} 7. O-O {[%clk 0:02:56]}  O-O {[%clk 0:02:59]} 8. c4 {[%clk 0:02:56]}  Bd7 {[%clk 0:03:00]} 9. Nbd2 {[%clk 0:02:52]}  Ne4 {[%clk 0:02:59]} 10. Qc2 {[%clk 0:02:46]}  Be8 {[%clk 0:03:00]} 11. Ne5 {[%clk 0:02:42]}  Nd7 {[%clk 0:03:00]} 12. Nd3 {[%clk 0:02:42]}  Rc8 {[%clk 0:02:55]} 13. Rac1 {[%clk 0:02:41]}  e6 {[%clk 0:02:53]} 14. Nf3 {[%clk 0:02:41]}  g5 {[%clk 0:02:50]} 15. Nfe5 {[%clk 0:02:41]}  Nxe5 {[%clk 0:02:50]} 16. Nxe5 {[%clk 0:02:41]}  g4 {[%clk 0:02:49]} 17. f3 {[%clk 0:02:40]}  Nf6 {[%clk 0:02:49]} 18. Qd2 {[%clk 0:02:37]}  Bh5 {[%clk 0:02:39]} 19. Ba3 {[%clk 0:02:36]}  Re8 {[%clk 0:02:36]} 20. h3 {[%clk 0:01:54]}  gxh3 {[%clk 0:02:35]} 21. Bxh3 {[%clk 0:01:55]}  Nd7 {[%clk 0:02:35]} 22. Bd6 {[%clk 0:01:36]}  Nxe5 {[%clk 0:02:29]} 23. Bxe5 {[%clk 0:01:36]}  Bxe5 {[%clk 0:02:27]} 24. dxe5 {[%clk 0:01:37]}  Qb6+ {[%clk 0:02:20]} 25. c5 {[%clk 0:01:30]}  Qc7 {[%clk 0:02:20]} 26. Qg5+ {[%clk 0:01:29]}  Bg6 {[%clk 0:02:21]} 27. f4 {[%clk 0:01:29]}  Qe7 {[%clk 0:02:19]} 28. Qxe7 {[%clk 0:01:27]}  Rxe7 {[%clk 0:02:19]} 29. e3 {[%clk 0:01:28]}  Bh5 {[%clk 0:02:19]} 30. Rc2 {[%clk 0:01:16]}  b6 {[%clk 0:02:15]} 31. Rfc1 {[%clk 0:01:15]}  b5 {[%clk 0:02:14]} 32. Kf2 {[%clk 0:01:15]}  a5 {[%clk 0:02:15]} 33. a3 {[%clk 0:01:15]}  Ra7 {[%clk 0:02:14]} 34. Bg2 {[%clk 0:01:14]}  a4 {[%clk 0:02:07]} 35. b4 {[%clk 0:01:14]}  Bg4 {[%clk 0:02:08]} 36. Rh1 {[%clk 0:01:14]}  h5 {[%clk 0:02:08]} 37. Bf3 {[%clk 0:01:14]}  Rh7 {[%clk 0:02:04]} 38. Rd2 {[%clk 0:01:12]}  Rcc7 {[%clk 0:02:02]} 39. Rd4 {[%clk 0:01:12]}  Rcg7 {[%clk 0:02:01]} 40. Rh4 {[%clk 0:01:13]} 1/2-1/2


[Site "https://www.chess.com"]

[Event "Titled Tuesday Blitz March 07 Early 2023"]
[White "Nur-Mukhametova, Alisa"]
[Black "Zahid, Sanatan"]
[WhiteFideId "54117739"]
[BlackFideId "10201963"]
[WhiteElo "1903"]
[BlackElo "1865"]
[Result "0-1"]
[Round "02"]
[TimeControl "180+2"]
[Date "2023.03.07"]
[WhiteClock "0:00:15"]
[BlackClock "0:01:51"]

1. d4 {[%clk 0:03:00]}  Nf6 {[%clk 0:02:59]} 2. c4 {[%clk 0:03:00]}  e6 {[%clk 0:03:00]} 3. Nf3 {[%clk 0:03:00]}  b6 {[%clk 0:02:59]} 4. g3 {[%clk 0:02:59]}  Bb7 {[%clk 0:02:59]} 5. Bg2 {[%clk 0:02:59]}  Bb4+ {[%clk 0:03:00]} 6. Bd2 {[%clk 0:02:57]}  Be7 {[%clk 0:02:59]} 7. O-O {[%clk 0:02:57]}  O-O {[%clk 0:02:59]} 8. Nc3 {[%clk 0:02:52]}  c6 {[%clk 0:02:59]} 9. Ne5 {[%clk 0:02:45]}  d5 {[%clk 0:02:59]} 10. Bf4 {[%clk 0:02:42]}  dxc4 {[%clk 0:02:56]} 11. Nxc4 {[%clk 0:02:38]}  Nd5 {[%clk 0:02:56]} 12. Rc1 {[%clk 0:02:28]}  Nxf4 {[%clk 0:02:55]} 13. gxf4 {[%clk 0:02:28]}  Nd7 {[%clk 0:02:55]} 14. Ne5 {[%clk 0:02:10]}  Rc8 {[%clk 0:02:49]} 15. Nb5 {[%clk 0:01:46]}  Nxe5 {[%clk 0:02:48]} 16. dxe5 {[%clk 0:01:40]}  cxb5 {[%clk 0:02:49]} 17. Bxb7 {[%clk 0:01:39]}  Rxc1 {[%clk 0:02:49]} 18. Qxc1 {[%clk 0:01:37]}  Bc5 {[%clk 0:02:47]} 19. e3 {[%clk 0:01:33]}  Qh4 {[%clk 0:02:45]} 20. Rd1 {[%clk 0:01:22]}  Kh8 {[%clk 0:02:43]} 21. Qd2 {[%clk 0:01:11]}  g5 {[%clk 0:02:36]} 22. b4 {[%clk 0:00:59]}  Be7 {[%clk 0:02:28]} 23. Kh1 {[%clk 0:00:57]}  gxf4 {[%clk 0:02:27]} 24. exf4 {[%clk 0:00:57]}  Rd8 {[%clk 0:02:21]} 25. Qe2 {[%clk 0:00:55]}  Rxd1+ {[%clk 0:02:07]} 26. Qxd1 {[%clk 0:00:55]}  Qxf2 {[%clk 0:02:05]} 27. Qf3 {[%clk 0:00:37]}  Qxf3+ {[%clk 0:01:53]} 28. Bxf3 {[%clk 0:00:36]}  Bxb4 {[%clk 0:01:54]} 29. Bc6 {[%clk 0:00:35]}  Bd2 {[%clk 0:01:54]} 30. Bxb5 {[%clk 0:00:34]}  Bxf4 {[%clk 0:01:54]} 31. Kg2 {[%clk 0:00:32]}  Bxe5 {[%clk 0:01:54]} 32. h3 {[%clk 0:00:32]}  Kg7 {[%clk 0:01:55]} 33. Kf3 {[%clk 0:00:32]}  f5 {[%clk 0:01:55]} 34. Bd7 {[%clk 0:00:31]}  Kf6 {[%clk 0:01:56]} 35. Bc8 {[%clk 0:00:29]}  Bd4 {[%clk 0:01:56]} 36. Ke2 {[%clk 0:00:29]}  e5 {[%clk 0:01:57]} 37. Kd3 {[%clk 0:00:29]}  Bc5 {[%clk 0:01:57]} 38. Kc4 {[%clk 0:00:28]}  Kg5 {[%clk 0:01:52]} 39. Kd5 {[%clk 0:00:22]}  Kf4 {[%clk 0:01:52]} 40. Ba6 {[%clk 0:00:15]}  e4 {[%clk 0:01:51]} 41. Be2 {[%clk 0:00:15]}  Ke3 {[%clk 0:01:50]} 42. Bh5 {[%clk 0:00:15]}  f4 {[%clk 0:01:51]} 0-1


[Site "https://www.chess.com"]

[Event "Titled Tuesday Blitz March 07 Early 2023"]
[White "Heinemann, Josefine"]
[Black "Garcia Ramos, Daniel"]
[WhiteFideId "12900460"]
[BlackFideId "32010311"]
[WhiteElo "2342"]
[BlackElo "2341"]
[Result "1-0"]
[Round "02"]
[TimeControl "180+2"]
[Date "2023.03.07"]
[WhiteClock "0:00:09"]
[BlackClock "0:00:28"]

1. e4 {[%clk 0:03:00]}  c6 {[%clk 0:02:58]} 2. d4 {[%clk 0:02:59]}  d5 {[%clk 0:02:58]} 3. e5 {[%clk 0:02:57]}  Bf5 {[%clk 0:02:58]} 4. Nf3 {[%clk 0:02:57]}  e6 {[%clk 0:02:58]} 5. Be2 {[%clk 0:02:57]}  Nd7 {[%clk 0:02:59]} 6. O-O {[%clk 0:02:56]}  h6 {[%clk 0:03:00]} 7. Nbd2 {[%clk 0:02:52]}  a6 {[%clk 0:03:00]} 8. a4 {[%clk 0:02:51]}  Qc7 {[%clk 0:02:59]} 9. Nb3 {[%clk 0:02:51]}  c5 {[%clk 0:02:59]} 10. c4 {[%clk 0:02:28]}  dxc4 {[%clk 0:02:56]} 11. Bxc4 {[%clk 0:02:27]}  cxd4 {[%clk 0:02:55]} 12. Qxd4 {[%clk 0:02:27]}  Ne7 {[%clk 0:02:52]} 13. Bf4 {[%clk 0:02:19]}  Nc6 {[%clk 0:02:50]} 14. Qe3 {[%clk 0:01:59]}  Qb6 {[%clk 0:02:51]} 15. Qe2 {[%clk 0:01:37]}  Bg4 {[%clk 0:02:42]} 16. Rad1 {[%clk 0:01:06]}  Be7 {[%clk 0:02:36]} 17. Rfe1 {[%clk 0:01:00]}  O-O-O {[%clk 0:02:24]} 18. Rc1 {[%clk 0:00:58]}  Kb8 {[%clk 0:02:17]} 19. h3 {[%clk 0:00:57]}  Bh5 {[%clk 0:02:15]} 20. Qe4 {[%clk 0:00:53]}  Ka8 {[%clk 0:02:09]} 21. a5 {[%clk 0:00:48]}  Qb4 {[%clk 0:01:46]} 22. Bd2 {[%clk 0:00:40]}  Qa4 {[%clk 0:01:43]} 23. Ra1 {[%clk 0:00:34]}  Bxf3 {[%clk 0:01:31]} 24. gxf3 {[%clk 0:00:34]}  Qxa1 {[%clk 0:01:20]} 25. Rxa1 {[%clk 0:00:33]}  Ndxe5 {[%clk 0:01:20]} 26. Bf1 {[%clk 0:00:27]}  f5 {[%clk 0:01:20]} 27. Qe2 {[%clk 0:00:14]}  g5 {[%clk 0:01:17]} 28. Be3 {[%clk 0:00:13]}  Rd5 {[%clk 0:01:12]} 29. Rd1 {[%clk 0:00:10]}  Rhd8 {[%clk 0:01:12]} 30. Rxd5 {[%clk 0:00:10]}  Rxd5 {[%clk 0:01:12]} 31. f4 {[%clk 0:00:10]}  Ng6 {[%clk 0:01:04]} 32. fxg5 {[%clk 0:00:10]}  hxg5 {[%clk 0:01:05]} 33. Bg2 {[%clk 0:00:08]}  Rd6 {[%clk 0:01:03]} 34. Nd4 {[%clk 0:00:07]}  Nxd4 {[%clk 0:01:00]} 35. Bxd4 {[%clk 0:00:08]}  Nf4 {[%clk 0:01:00]} 36. Qc4 {[%clk 0:00:06]}  Nxg2 {[%clk 0:00:58]} 37. Kxg2 {[%clk 0:00:05]}  Rc6 {[%clk 0:00:58]} 38. Qb3 {[%clk 0:00:04]}  Kb8 {[%clk 0:00:55]} 39. Bc3 {[%clk 0:00:05]}  Kc7 {[%clk 0:00:54]} 40. Qa4 {[%clk 0:00:05]}  Bc5 {[%clk 0:00:53]} 41. Qa1 {[%clk 0:00:05]}  Kd7 {[%clk 0:00:45]} 42. Qd1+ {[%clk 0:00:05]}  Ke7 {[%clk 0:00:45]} 43. Qh5 {[%clk 0:00:06]}  g4 {[%clk 0:00:34]} 44. hxg4 {[%clk 0:00:05]}  fxg4 {[%clk 0:00:35]} 45. Be5 {[%clk 0:00:06]}  Rc8 {[%clk 0:00:26]} 46. Qh7+ {[%clk 0:00:05]}  Ke8 {[%clk 0:00:26]} 47. Qg8+ {[%clk 0:00:05]}  Kd7 {[%clk 0:00:27]} 48. Qf7+ {[%clk 0:00:05]}  Be7 {[%clk 0:00:28]} 49. Bf6 {[%clk 0:00:04]}  Re8 {[%clk 0:00:28]} 50. Bxe7 {[%clk 0:00:04]}  Rxe7 {[%clk 0:00:29]} 51. Qf4 {[%clk 0:00:05]}  Kc6 {[%clk 0:00:28]} 52. Qb4 {[%clk 0:00:05]}  Rd7 {[%clk 0:00:26]} 53. Qxg4 {[%clk 0:00:05]}  Rd6 {[%clk 0:00:25]} 54. Qb4 {[%clk 0:00:05]}  Kc7 {[%clk 0:00:24]} 55. f4 {[%clk 0:00:05]}  Kc6 {[%clk 0:00:23]} 56. Kg3 {[%clk 0:00:06]}  Kc7 {[%clk 0:00:24]} 57. Kg4 {[%clk 0:00:07]}  Kc6 {[%clk 0:00:24]} 58. Kg5 {[%clk 0:00:06]}  Kc7 {[%clk 0:00:25]} 59. Kf6 {[%clk 0:00:07]}  Kc6 {[%clk 0:00:23]} 60. Ke7 {[%clk 0:00:06]}  Rd5 {[%clk 0:00:23]} 61. Kxe6 {[%clk 0:00:06]}  Rb5 {[%clk 0:00:24]} 62. Qc4+ {[%clk 0:00:05]}  Rc5 {[%clk 0:00:25]} 63. Qxc5+ {[%clk 0:00:06]}  Kxc5 {[%clk 0:00:25]} 64. f5 {[%clk 0:00:07]}  b6 {[%clk 0:00:26]} 65. f6 {[%clk 0:00:08]}  bxa5 {[%clk 0:00:26]} 66. f7 {[%clk 0:00:08]}  Kb4 {[%clk 0:00:27]} 67. f8=Q+ {[%clk 0:00:09]}  Kb3 {[%clk 0:00:28]} 68. Qa3+ {[%clk 0:00:09]}  Kc4 {[%clk 0:00:28]} 69. Qxa5 {[%clk 0:00:09]} 1-0


[Site "https://www.chess.com"]

[Event "Titled Tuesday Blitz March 07 Early 2023"]
[White "Klabis, Rokas"]
[Black "Hoffmann, Asa"]
[WhiteFideId "12805246"]
[BlackFideId "2001470"]
[WhiteElo "2288"]
[BlackElo "2117"]
[Result "1-0"]
[Round "02"]
[TimeControl "180+2"]
[Date "2023.03.07"]
[WhiteClock "0:00:56"]
[BlackClock "0:00:50"]

1. e4 {[%clk 0:02:55]}  d6 {[%clk 0:02:59]} 2. d4 {[%clk 0:02:54]}  Nf6 {[%clk 0:02:58]} 3. Nc3 {[%clk 0:02:55]}  c6 {[%clk 0:02:58]} 4. Be3 {[%clk 0:02:53]}  Ng4 {[%clk 0:02:57]} 5. Bg5 {[%clk 0:02:48]}  Qb6 {[%clk 0:02:56]} 6. Rb1 {[%clk 0:02:40]}  e5 {[%clk 0:02:54]} 7. Nf3 {[%clk 0:02:34]}  f6 {[%clk 0:02:50]} 8. Bh4 {[%clk 0:02:33]}  g5 {[%clk 0:02:46]} 9. Bg3 {[%clk 0:02:33]}  h5 {[%clk 0:02:46]} 10. h3 {[%clk 0:02:30]}  Nh6 {[%clk 0:02:45]} 11. Bc4 {[%clk 0:02:19]}  h4 {[%clk 0:02:42]} 12. Bh2 {[%clk 0:02:15]}  Nf7 {[%clk 0:02:37]} 13. Bxf7+ {[%clk 0:01:39]}  Kxf7 {[%clk 0:02:35]} 14. dxe5 {[%clk 0:01:40]}  dxe5 {[%clk 0:02:27]} 15. Bxe5 {[%clk 0:01:40]}  fxe5 {[%clk 0:02:11]} 16. Nxe5+ {[%clk 0:01:41]}  Kg7 {[%clk 0:02:04]} 17. O-O {[%clk 0:01:15]}  Be7 {[%clk 0:02:03]} 18. Kh1 {[%clk 0:01:10]}  Be6 {[%clk 0:02:02]} 19. f4 {[%clk 0:01:10]}  Bf6 {[%clk 0:01:45]} 20. Ng4 {[%clk 0:01:08]}  Bxg4 {[%clk 0:01:39]} 21. Qxg4 {[%clk 0:01:09]}  Qc5 {[%clk 0:01:16]} 22. e5 {[%clk 0:01:08]}  Be7 {[%clk 0:01:12]} 23. Ne4 {[%clk 0:01:06]}  Qxc2 {[%clk 0:01:07]} 24. f5 {[%clk 0:01:06]}  Bd8 {[%clk 0:01:00]} 25. f6+ {[%clk 0:01:05]}  Kf8 {[%clk 0:00:57]} 26. Nxg5 {[%clk 0:00:56]}  Qg6 {[%clk 0:00:51]} 27. Ne6+ {[%clk 0:00:55]}  Kf7 {[%clk 0:00:51]} 28. Nxd8+ {[%clk 0:00:55]}  Rxd8 {[%clk 0:00:50]} 29. e6+ {[%clk 0:00:56]} 1-0


[Site "https://www.chess.com"]

[Event "Titled Tuesday Blitz March 07 Early 2023"]
[White "Pourramezanali, Amirreza"]
[Black "Sarkar, Justin"]
[WhiteFideId "12511412"]
[BlackFideId "2010011"]
[WhiteElo "2382"]
[BlackElo "2189"]
[Result "1-0"]
[Round "02"]
[TimeControl "180+2"]
[Date "2023.03.07"]
[WhiteClock "0:02:09"]
[BlackClock "0:00:04"]

1. e4 {[%clk 0:03:00]}  e5 {[%clk 0:02:56]} 2. Nf3 {[%clk 0:03:00]}  Nc6 {[%clk 0:02:55]} 3. Bc4 {[%clk 0:02:59]}  Nf6 {[%clk 0:02:54]} 4. d3 {[%clk 0:02:59]}  Be7 {[%clk 0:02:54]} 5. O-O {[%clk 0:02:58]}  O-O {[%clk 0:02:54]} 6. a4 {[%clk 0:02:59]}  d5 {[%clk 0:02:53]} 7. exd5 {[%clk 0:02:59]}  Nxd5 {[%clk 0:02:53]} 8. a5 {[%clk 0:03:00]}  Bg4 {[%clk 0:02:34]} 9. h3 {[%clk 0:02:57]}  Bh5 {[%clk 0:02:18]} 10. c3 {[%clk 0:02:56]}  a6 {[%clk 0:01:58]} 11. Nbd2 {[%clk 0:02:52]}  Qd7 {[%clk 0:01:10]} 12. Ne4 {[%clk 0:02:49]}  Kh8 {[%clk 0:00:21]} 13. Re1 {[%clk 0:02:41]}  f6 {[%clk 0:00:19]} 14. Ng3 {[%clk 0:02:34]}  Bf7 {[%clk 0:00:18]} 15. d4 {[%clk 0:02:30]}  exd4 {[%clk 0:00:14]} 16. Nxd4 {[%clk 0:02:31]}  Ne5 {[%clk 0:00:09]} 17. Bf1 {[%clk 0:02:26]}  c5 {[%clk 0:00:07]} 18. Ndf5 {[%clk 0:02:26]}  Rad8 {[%clk 0:00:04]} 19. Nxe7 {[%clk 0:02:09]} 1-0


[Site "https://www.chess.com"]